[Event "Titled Tuesday Blitz July 18 Early 2023"]
[White "Harriott, Tyrell"]
[Black "abelmat"]
[WhiteFideId "2086484"]
[WhiteElo "2412"]
[BlackElo "1962"]
[Result "1-0"]
[Round "2"]
[TimeControl "180+2"]
[Date "2023.07.18"]
[WhiteClock "0:01:28"]
[BlackClock "0:00:00"]
[Board "212"]

1. d4 {[%clk 0:02:55]}  d5 {[%clk 0:00:52]} 2. e3 {[%clk 0:02:56]}  Nf6 {[%clk 0:00:51]} 3. Bd3 {[%clk 0:02:56]}  e6 {[%clk 0:00:50]} 4. f4 {[%clk 0:02:56]}  Bd6 {[%clk 0:00:49]} 5. Nf3 {[%clk 0:02:55]}  Ne4 {[%clk 0:00:47]} 6. O-O {[%clk 0:02:49]}  O-O {[%clk 0:00:43]} 7. c4 {[%clk 0:02:46]}  c6 {[%clk 0:00:42]} 8. Nc3 {[%clk 0:02:45]}  f5 {[%clk 0:00:42]} 9. c5 {[%clk 0:02:46]}  Bc7 {[%clk 0:00:42]} 10. Ne2 {[%clk 0:02:46]}  Nd7 {[%clk 0:00:40]} 11. b4 {[%clk 0:02:45]}  Ndf6 {[%clk 0:00:37]} 12. b5 {[%clk 0:02:45]}  Bd7 {[%clk 0:00:37]} 13. a4 {[%clk 0:02:45]}  Be8 {[%clk 0:00:30]} 14. Bd2 {[%clk 0:02:42]}  Bh5 {[%clk 0:00:29]} 15. Be1 {[%clk 0:02:42]}  Ng4 {[%clk 0:00:24]} 16. Qc1 {[%clk 0:02:39]}  Qe8 {[%clk 0:00:19]} 17. bxc6 {[%clk 0:02:31]}  bxc6 {[%clk 0:00:19]} 18. a5 {[%clk 0:02:32]}  Rb8 {[%clk 0:00:19]} 19. a6 {[%clk 0:02:29]}  Kh8 {[%clk 0:00:16]} 20. h3 {[%clk 0:02:24]}  Ngf6 {[%clk 0:00:14]} 21. Kh2 {[%clk 0:02:19]}  Rg8 {[%clk 0:00:14]} 22. Bh4 {[%clk 0:02:15]}  g5 {[%clk 0:00:11]} 23. Be1 {[%clk 0:02:07]}  g4 {[%clk 0:00:10]} 24. Ne5 {[%clk 0:02:02]}  gxh3 {[%clk 0:00:07]} 25. gxh3 {[%clk 0:02:02]}  Bxe2 {[%clk 0:00:07]} 26. Bxe2 {[%clk 0:02:00]}  Bxe5 {[%clk 0:00:06]} 27. fxe5 {[%clk 0:01:55]}  Nh5 {[%clk 0:00:06]} 28. Qc2 {[%clk 0:01:37]}  Nhg3 {[%clk 0:00:05]} 29. Rg1 {[%clk 0:01:32]}  Nxe2 {[%clk 0:00:02]} 30. Qxe2 {[%clk 0:01:30]}  Qf7 {[%clk 0:00:00]} 31. Bh4 {[%clk 0:01:28]} 1-0


[Site "https://www.chess.com"]

[Event "Titled Tuesday Blitz July 18 Early 2023"]
[White "Garsky, Vladyslav"]
[Black "Gamboa, Juan Pablo"]
[WhiteFideId "34100270"]
[BlackFideId "105180"]
[WhiteElo "2409"]
[BlackElo "1936"]
[Result "0-1"]
[Round "2"]
[TimeControl "180+2"]
[Date "2023.07.18"]
[WhiteClock "0:02:01"]
[BlackClock "0:01:20"]
[Board "213"]

1. e4 {[%clk 0:03:00]}  e6 {[%clk 0:02:59]} 2. d4 {[%clk 0:03:00]}  d5 {[%clk 0:02:59]} 3. e5 {[%clk 0:03:01]}  c5 {[%clk 0:02:59]} 4. c3 {[%clk 0:03:01]}  Qb6 {[%clk 0:03:00]} 5. Nf3 {[%clk 0:03:01]}  Bd7 {[%clk 0:03:00]} 6. Be2 {[%clk 0:02:52]}  Bb5 {[%clk 0:03:01]} 7. O-O {[%clk 0:02:53]}  Bxe2 {[%clk 0:03:00]} 8. Qxe2 {[%clk 0:02:53]}  c4 {[%clk 0:03:01]} 9. h4 {[%clk 0:02:48]}  Nc6 {[%clk 0:03:00]} 10. Nbd2 {[%clk 0:02:45]}  Na5 {[%clk 0:03:00]} 11. Ne1 {[%clk 0:02:43]}  Be7 {[%clk 0:02:57]} 12. g3 {[%clk 0:02:43]}  Nh6 {[%clk 0:02:55]} 13. Ng2 {[%clk 0:02:41]}  Nf5 {[%clk 0:02:54]} 14. Ne3 {[%clk 0:02:41]}  Nxe3 {[%clk 0:02:49]} 15. Qxe3 {[%clk 0:02:38]}  O-O {[%clk 0:02:45]} 16. Nf3 {[%clk 0:02:37]}  f6 {[%clk 0:02:28]} 17. Re1 {[%clk 0:02:35]}  f5 {[%clk 0:02:29]} 18. Rb1 {[%clk 0:02:31]}  Rae8 {[%clk 0:02:17]} 19. Qe2 {[%clk 0:02:31]}  h6 {[%clk 0:02:07]} 20. h5 {[%clk 0:02:30]}  Kh7 {[%clk 0:01:57]} 21. Bf4 {[%clk 0:02:27]}  Rg8 {[%clk 0:01:54]} 22. Nh4 {[%clk 0:02:28]}  Bxh4 {[%clk 0:01:48]} 23. gxh4 {[%clk 0:02:28]}  g5 {[%clk 0:01:49]} 24. hxg6+ {[%clk 0:02:27]}  Rxg6+ {[%clk 0:01:48]} 25. Kh2 {[%clk 0:02:27]}  Reg8 {[%clk 0:01:48]} 26. Rg1 {[%clk 0:02:27]}  Rxg1 {[%clk 0:01:39]} 27. Rxg1 {[%clk 0:02:27]}  Rxg1 {[%clk 0:01:40]} 28. Kxg1 {[%clk 0:02:27]}  Qd8 {[%clk 0:01:39]} 29. Qh5 {[%clk 0:02:27]}  Qg8+ {[%clk 0:01:39]} 30. Kf1 {[%clk 0:02:25]}  Qg6 {[%clk 0:01:38]} 31. Qf3 {[%clk 0:02:24]}  Nc6 {[%clk 0:01:36]} 32. h5 {[%clk 0:02:23]}  Qg4 {[%clk 0:01:32]} 33. Qxg4 {[%clk 0:02:17]}  fxg4 {[%clk 0:01:32]} 34. Kg2 {[%clk 0:02:18]}  Ne7 {[%clk 0:01:32]} 35. Kg3 {[%clk 0:02:18]}  b5 {[%clk 0:01:26]} 36. Kxg4 {[%clk 0:02:18]}  a5 {[%clk 0:01:26]} 37. Bg3 {[%clk 0:02:18]}  b4 {[%clk 0:01:25]} 38. Bh4 {[%clk 0:02:16]}  Nc6 {[%clk 0:01:24]} 39. f4 {[%clk 0:02:14]}  a4 {[%clk 0:01:21]} 40. Be1 {[%clk 0:02:14]}  a3 {[%clk 0:01:21]} 41. bxa3 {[%clk 0:02:10]}  b3 {[%clk 0:01:21]} 42. f5 {[%clk 0:02:05]}  exf5+ {[%clk 0:01:19]} 43. Kxf5 {[%clk 0:02:01]}  b2 {[%clk 0:01:20]} 0-1


[Site "https://www.chess.com"]

[Event "Titled Tuesday Blitz July 18 Early 2023"]
[White "Bueno, Alfeu Junior Varela"]
[Black "Saim, Mohamed Ilias"]
[WhiteFideId "2108879"]
[BlackFideId "7900465"]
[WhiteElo "2406"]
[BlackElo "1911"]
[Result "1-0"]
[Round "2"]
[TimeControl "180+2"]
[Date "2023.07.18"]
[WhiteClock "0:00:12"]
[BlackClock "0:00:00"]
[Board "215"]

1. e4 {[%clk 0:02:55]}  c6 {[%clk 0:02:59]} 2. d4 {[%clk 0:02:54]}  d5 {[%clk 0:03:00]} 3. f3 {[%clk 0:02:54]}  e5 {[%clk 0:02:52]} 4. dxe5 {[%clk 0:02:52]}  Qb6 {[%clk 0:02:53]} 5. exd5 {[%clk 0:02:52]}  Bc5 {[%clk 0:02:52]} 6. Nh3 {[%clk 0:02:53]}  Bxh3 {[%clk 0:02:45]} 7. gxh3 {[%clk 0:02:54]}  Bf2+ {[%clk 0:02:45]} 8. Ke2 {[%clk 0:02:51]}  Bh4 {[%clk 0:02:44]} 9. Nc3 {[%clk 0:02:32]}  Na6 {[%clk 0:02:27]} 10. Be3 {[%clk 0:02:12]}  Qxb2 {[%clk 0:02:19]} 11. Bd4 {[%clk 0:02:06]}  Nb4 {[%clk 0:02:02]} 12. dxc6 {[%clk 0:01:16]}  Qxc2+ {[%clk 0:01:48]} 13. Qxc2 {[%clk 0:01:14]}  Nxc2 {[%clk 0:01:48]} 14. Rd1 {[%clk 0:01:14]}  Nxd4+ {[%clk 0:01:42]} 15. Rxd4 {[%clk 0:01:15]}  Be7 {[%clk 0:01:26]} 16. cxb7 {[%clk 0:01:01]}  Rb8 {[%clk 0:01:25]} 17. Nb5 {[%clk 0:00:47]}  Rxb7 {[%clk 0:01:21]} 18. Nd6+ {[%clk 0:00:39]}  Bxd6 {[%clk 0:01:21]} 19. Rxd6 {[%clk 0:00:39]}  Rb2+ {[%clk 0:01:07]} 20. Ke3 {[%clk 0:00:38]}  Rxa2 {[%clk 0:01:06]} 21. Bb5+ {[%clk 0:00:35]}  Ke7 {[%clk 0:01:03]} 22. Rc1 {[%clk 0:00:35]}  g6 {[%clk 0:00:39]} 23. Rc7+ {[%clk 0:00:34]}  Kf8 {[%clk 0:00:39]} 24. e6 {[%clk 0:00:34]}  Nh6 {[%clk 0:00:18]} 25. Rd8+ {[%clk 0:00:27]}  Kg7 {[%clk 0:00:18]} 26. Rxh8 {[%clk 0:00:27]}  Kxh8 {[%clk 0:00:17]} 27. exf7 {[%clk 0:00:23]}  Ra3+ {[%clk 0:00:17]} 28. Kf4 {[%clk 0:00:21]}  Kg7 {[%clk 0:00:17]} 29. Bc4 {[%clk 0:00:18]}  Ra4 {[%clk 0:00:16]} 30. Kg5 {[%clk 0:00:16]}  Rxc4 {[%clk 0:00:13]} 31. Rxc4 {[%clk 0:00:16]}  Nxf7+ {[%clk 0:00:13]} 32. Kg4 {[%clk 0:00:16]}  h5+ {[%clk 0:00:10]} 33. Kf4 {[%clk 0:00:16]}  Nd6 {[%clk 0:00:09]} 34. Ra4 {[%clk 0:00:15]}  Nc8 {[%clk 0:00:07]} 35. Ke5 {[%clk 0:00:15]}  Kf7 {[%clk 0:00:05]} 36. h4 {[%clk 0:00:16]}  Ke7 {[%clk 0:00:05]} 37. Ra6 {[%clk 0:00:15]}  Kf7 {[%clk 0:00:03]} 38. Rc6 {[%clk 0:00:14]}  Ne7 {[%clk 0:00:02]} 39. Rc7 {[%clk 0:00:15]}  Kf8 {[%clk 0:00:00]} 40. Ke6 {[%clk 0:00:12]} 1-0


[Site "https://www.chess.com"]

[Event "Titled Tuesday Blitz July 18 Early 2023"]
[White "Navyblue1"]
[Black "Goswami, Vedant"]
[BlackFideId "5003725"]
[WhiteElo "1875"]
[BlackElo "2406"]
[Result "0-1"]
[Round "2"]
[TimeControl "180+2"]
[Date "2023.07.18"]
[WhiteClock "0:00:00"]
[BlackClock "0:01:35"]
[Board "216"]

1. d4 {[%clk 0:03:00]}  a6 {[%clk 0:02:58]} 2. c4 {[%clk 0:03:00]}  c6 {[%clk 0:02:59]} 3. e4 {[%clk 0:02:56]}  d5 {[%clk 0:02:57]} 4. cxd5 {[%clk 0:02:08]}  cxd5 {[%clk 0:02:56]} 5. e5 {[%clk 0:02:08]}  Nc6 {[%clk 0:02:55]} 6. Nc3 {[%clk 0:02:06]}  Bf5 {[%clk 0:02:53]} 7. a3 {[%clk 0:01:56]}  e6 {[%clk 0:02:52]} 8. Nf3 {[%clk 0:01:49]}  Nge7 {[%clk 0:02:51]} 9. h3 {[%clk 0:01:27]}  Be4 {[%clk 0:02:46]} 10. Be3 {[%clk 0:01:09]}  Nf5 {[%clk 0:02:44]} 11. Be2 {[%clk 0:00:48]}  Be7 {[%clk 0:02:09]} 12. O-O {[%clk 0:00:29]}  O-O {[%clk 0:02:07]} 13. Qd2 {[%clk 0:00:18]}  f6 {[%clk 0:02:03]} 14. Rad1 {[%clk 0:00:08]}  Bxf3 {[%clk 0:01:57]} 15. Bxf3 {[%clk 0:00:08]}  fxe5 {[%clk 0:01:57]} 16. Bg4 {[%clk 0:00:05]}  exd4 {[%clk 0:01:55]} 17. Bxf5 {[%clk 0:00:04]}  Rxf5 {[%clk 0:01:50]} 18. Bxd4 {[%clk 0:00:04]}  Nxd4 {[%clk 0:01:50]} 19. Qxd4 {[%clk 0:00:04]}  Bf6 {[%clk 0:01:47]} 20. Qb4 {[%clk 0:00:04]}  Qc7 {[%clk 0:01:40]} 21. Rc1 {[%clk 0:00:00]}  Qf7 {[%clk 0:01:35]} 0-1


[Site "https://www.chess.com"]

[Event "Titled Tuesday Blitz July 18 Early 2023"]
[White "Castillo Pena, Patricia Evarista"]
[Black "Mazurkiewicz, Michal"]
[WhiteFideId "6412106"]
[BlackFideId "1124943"]
[WhiteElo "1837"]
[BlackElo "2403"]
[Result "0-1"]
[Round "2"]
[TimeControl "180+2"]
[Date "2023.07.18"]
[WhiteClock "0:00:00"]
[BlackClock "0:00:19"]
[Board "218"]

1. d4 {[%clk 0:02:59]}  Nf6 {[%clk 0:03:00]} 2. Nf3 {[%clk 0:02:59]}  g6 {[%clk 0:03:00]} 3. Nc3 {[%clk 0:02:58]}  d5 {[%clk 0:03:00]} 4. Bf4 {[%clk 0:02:58]}  Bg7 {[%clk 0:03:00]} 5. e3 {[%clk 0:02:58]}  O-O {[%clk 0:03:01]} 6. Be2 {[%clk 0:02:56]}  Nh5 {[%clk 0:03:01]} 7. Bg5 {[%clk 0:02:55]}  h6 {[%clk 0:03:00]} 8. Bh4 {[%clk 0:02:55]}  g5 {[%clk 0:03:01]} 9. Bg3 {[%clk 0:02:55]}  c6 {[%clk 0:02:59]} 10. Ne5 {[%clk 0:02:48]}  Nxg3 {[%clk 0:02:57]} 11. hxg3 {[%clk 0:02:49]}  Nd7 {[%clk 0:02:57]} 12. Ng4 {[%clk 0:02:41]}  Kh7 {[%clk 0:02:40]} 13. Bd3+ {[%clk 0:02:36]}  f5 {[%clk 0:02:40]} 14. Nxh6 {[%clk 0:02:23]}  Bxh6 {[%clk 0:02:34]} 15. Qh5 {[%clk 0:02:22]}  Rf6 {[%clk 0:02:34]} 16. Bxf5+ {[%clk 0:02:16]}  Kg7 {[%clk 0:02:34]} 17. O-O-O {[%clk 0:01:53]}  Nf8 {[%clk 0:02:34]} 18. Bd3 {[%clk 0:01:29]}  Qd6 {[%clk 0:02:23]} 19. f4 {[%clk 0:01:27]}  g4 {[%clk 0:02:17]} 20. Kb1 {[%clk 0:01:02]}  Bd7 {[%clk 0:02:05]} 21. e4 {[%clk 0:00:50]}  dxe4 {[%clk 0:00:42]} 22. Nxe4 {[%clk 0:00:50]}  Qxd4 {[%clk 0:00:42]} 23. Nxf6 {[%clk 0:00:47]}  Qxf6 {[%clk 0:00:43]} 24. Rde1 {[%clk 0:00:39]}  Be6 {[%clk 0:00:38]} 25. f5 {[%clk 0:00:38]}  Bf7 {[%clk 0:00:38]} 26. Qxg4+ {[%clk 0:00:37]}  Qg5 {[%clk 0:00:32]} 27. Qxg5+ {[%clk 0:00:34]}  Bxg5 {[%clk 0:00:33]} 28. g4 {[%clk 0:00:25]}  Nh7 {[%clk 0:00:33]} 29. f6+ {[%clk 0:00:17]}  Nxf6 {[%clk 0:00:31]} 30. Rxe7 {[%clk 0:00:14]}  b5 {[%clk 0:00:27]} 31. Rc7 {[%clk 0:00:13]}  Nxg4 {[%clk 0:00:23]} 32. Rf1 {[%clk 0:00:10]}  Ne5 {[%clk 0:00:23]} 33. a3 {[%clk 0:00:07]}  Rf8 {[%clk 0:00:22]} 34. Be4 {[%clk 0:00:04]}  Kg8 {[%clk 0:00:21]} 35. Bxc6 {[%clk 0:00:03]}  Ba2+ {[%clk 0:00:21]} 36. Kxa2 {[%clk 0:00:03]}  Rxf1 {[%clk 0:00:21]} 37. Bd5+ {[%clk 0:00:02]}  Kf8 {[%clk 0:00:20]} 38. Rxa7 {[%clk 0:00:00]}  Rf2 {[%clk 0:00:19]} 0-1


[Site "https://www.chess.com"]

[Event "Titled Tuesday Blitz July 18 Early 2023"]
[White "Villarreal, Agustin"]
[Black "Da Paz, Leonardo Gadelha"]
[WhiteFideId "125687"]
[BlackFideId "2109743"]
[WhiteElo "2401"]
[BlackElo "1812"]
[Result "1/2-1/2"]
[Round "2"]
[TimeControl "180+2"]
[Date "2023.07.18"]
[WhiteClock "0:00:28"]
[BlackClock "0:00:34"]
[Board "219"]

1. e4 {[%clk 0:03:00]}  c5 {[%clk 0:02:58]} 2. Nf3 {[%clk 0:03:00]}  e6 {[%clk 0:02:59]} 3. d4 {[%clk 0:03:00]}  cxd4 {[%clk 0:03:00]} 4. Nxd4 {[%clk 0:03:01]}  a6 {[%clk 0:03:00]} 5. Bd3 {[%clk 0:03:00]}  b5 {[%clk 0:03:00]} 6. O-O {[%clk 0:02:56]}  Bb7 {[%clk 0:02:58]} 7. a4 {[%clk 0:02:53]}  b4 {[%clk 0:02:56]} 8. c3 {[%clk 0:02:40]}  Nc6 {[%clk 0:02:54]} 9. Nf3 {[%clk 0:02:32]}  Nf6 {[%clk 0:02:49]} 10. Re1 {[%clk 0:02:27]}  d6 {[%clk 0:02:46]} 11. Bd2 {[%clk 0:01:49]}  d5 {[%clk 0:02:42]} 12. exd5 {[%clk 0:01:46]}  Nxd5 {[%clk 0:02:37]} 13. Be4 {[%clk 0:01:38]}  Be7 {[%clk 0:02:34]} 14. cxb4 {[%clk 0:01:35]}  Ncxb4 {[%clk 0:02:29]} 15. Bxb4 {[%clk 0:01:27]}  Bxb4 {[%clk 0:02:28]} 16. Nbd2 {[%clk 0:01:11]}  O-O {[%clk 0:02:22]} 17. Qb3 {[%clk 0:01:11]}  a5 {[%clk 0:02:13]} 18. Rad1 {[%clk 0:01:10]}  Qf6 {[%clk 0:02:05]} 19. Bb1 {[%clk 0:00:39]}  g6 {[%clk 0:01:40]} 20. Ne4 {[%clk 0:00:36]}  Qg7 {[%clk 0:01:27]} 21. Re2 {[%clk 0:00:33]}  Rfd8 {[%clk 0:01:18]} 22. h3 {[%clk 0:00:26]}  Rab8 {[%clk 0:01:07]} 23. Qc2 {[%clk 0:00:23]}  Rbc8 {[%clk 0:01:00]} 24. Qd3 {[%clk 0:00:24]}  Be7 {[%clk 0:00:52]} 25. Qb3 {[%clk 0:00:21]}  Nb4 {[%clk 0:00:35]} 26. Rxd8+ {[%clk 0:00:20]}  Rxd8 {[%clk 0:00:33]} 27. Re1 {[%clk 0:00:20]}  Bd5 {[%clk 0:00:26]} 28. Qc3 {[%clk 0:00:18]}  Qxc3 {[%clk 0:00:19]} 29. bxc3 {[%clk 0:00:19]}  Nc6 {[%clk 0:00:18]} 30. Nd4 {[%clk 0:00:16]}  Nxd4 {[%clk 0:00:18]} 31. cxd4 {[%clk 0:00:17]}  Bxe4 {[%clk 0:00:18]} 32. Rxe4 {[%clk 0:00:18]}  Rb8 {[%clk 0:00:18]} 33. Bd3 {[%clk 0:00:17]}  Bb4 {[%clk 0:00:19]} 34. Bb5 {[%clk 0:00:17]}  Rc8 {[%clk 0:00:19]} 35. g3 {[%clk 0:00:17]}  Rc1+ {[%clk 0:00:20]} 36. Kg2 {[%clk 0:00:18]}  Rd1 {[%clk 0:00:20]} 37. h4 {[%clk 0:00:16]}  Rd2 {[%clk 0:00:21]} 38. h5 {[%clk 0:00:15]}  f5 {[%clk 0:00:22]} 39. Rxe6 {[%clk 0:00:15]}  Rxd4 {[%clk 0:00:23]} 40. hxg6 {[%clk 0:00:15]}  hxg6 {[%clk 0:00:23]} 41. Rxg6+ {[%clk 0:00:16]}  Kf7 {[%clk 0:00:23]} 42. Ra6 {[%clk 0:00:15]}  Ke7 {[%clk 0:00:23]} 43. Ra7+ {[%clk 0:00:16]}  Kd6 {[%clk 0:00:23]} 44. Rd7+ {[%clk 0:00:16]}  Kc5 {[%clk 0:00:24]} 45. Rxd4 {[%clk 0:00:16]}  Kxd4 {[%clk 0:00:24]} 46. Bd7 {[%clk 0:00:15]}  Ke5 {[%clk 0:00:25]} 47. Kf3 {[%clk 0:00:14]}  Bd2 {[%clk 0:00:25]} 48. Bb5 {[%clk 0:00:15]}  Bc3 {[%clk 0:00:26]} 49. Ke2 {[%clk 0:00:14]}  Bd4 {[%clk 0:00:27]} 50. f3 {[%clk 0:00:15]}  Bc5 {[%clk 0:00:27]} 51. Kf1 {[%clk 0:00:15]}  Bb4 {[%clk 0:00:28]} 52. Kg2 {[%clk 0:00:16]}  Bc5 {[%clk 0:00:28]} 53. Kh3 {[%clk 0:00:16]}  Be3 {[%clk 0:00:29]} 54. g4 {[%clk 0:00:16]}  fxg4+ {[%clk 0:00:29]} 55. fxg4 {[%clk 0:00:17]}  Bg5 {[%clk 0:00:29]} 56. Kg3 {[%clk 0:00:17]}  Kd4 {[%clk 0:00:29]} 57. Kf3 {[%clk 0:00:18]}  Bh6 {[%clk 0:00:28]} 58. Kg3 {[%clk 0:00:17]}  Bg5 {[%clk 0:00:29]} 59. Kg2 {[%clk 0:00:17]}  Ke3 {[%clk 0:00:30]} 60. Kg3 {[%clk 0:00:17]}  Bh6 {[%clk 0:00:30]} 61. Kh3 {[%clk 0:00:18]}  Kf4 {[%clk 0:00:30]} 62. Kh4 {[%clk 0:00:19]}  Bg5+ {[%clk 0:00:30]} 63. Kh5 {[%clk 0:00:20]}  Bf6 {[%clk 0:00:30]} 64. Kg6 {[%clk 0:00:20]}  Bg5 {[%clk 0:00:31]} 65. Kh5 {[%clk 0:00:20]}  Bf6 {[%clk 0:00:31]} 66. Bc6 {[%clk 0:00:21]}  Bg5 {[%clk 0:00:31]} 67. Bd7 {[%clk 0:00:22]}  Bf6 {[%clk 0:00:31]} 68. Be8 {[%clk 0:00:23]}  Bg5 {[%clk 0:00:31]} 69. Bf7 {[%clk 0:00:24]}  Bf6 {[%clk 0:00:32]} 70. Be8 {[%clk 0:00:25]}  Bg5 {[%clk 0:00:33]} 71. Bd7 {[%clk 0:00:26]}  Bf6 {[%clk 0:00:33]} 72. Bc6 {[%clk 0:00:27]}  Bg5 {[%clk 0:00:34]} 73. Bb5 {[%clk 0:00:28]} 1/2-1/2


[Site "https://www.chess.com"]

[Event "Titled Tuesday Blitz July 18 Early 2023"]
[White "Nakamura, Hikaru"]
[Black "Papasimakopoulos, Alexandros"]
[WhiteFideId "2016192"]
[BlackFideId "4244125"]
[WhiteElo "3248"]
[BlackElo "2738"]
[Result "1-0"]
[Round "3"]
[TimeControl "180+2"]
[Date "2023.07.18"]
[WhiteClock "0:00:31"]
[BlackClock "0:00:03"]
[Board "1"]

1. a3 {[%clk 0:03:00]}  d5 {[%clk 0:02:51]} 2. e3 {[%clk 0:02:58]}  c5 {[%clk 0:02:48]} 3. b4 {[%clk 0:02:53]}  c4 {[%clk 0:02:42]} 4. Bb2 {[%clk 0:02:50]}  Bf5 {[%clk 0:02:38]} 5. d3 {[%clk 0:02:46]}  cxd3 {[%clk 0:02:37]} 6. Bxd3 {[%clk 0:02:46]}  Bg6 {[%clk 0:02:37]} 7. Nf3 {[%clk 0:02:44]}  e6 {[%clk 0:02:36]} 8. Bb5+ {[%clk 0:02:43]}  Nc6 {[%clk 0:02:31]} 9. Ne5 {[%clk 0:02:43]}  Ne7 {[%clk 0:02:29]} 10. h4 {[%clk 0:02:35]}  h5 {[%clk 0:02:15]} 11. c4 {[%clk 0:02:23]}  a6 {[%clk 0:02:15]} 12. Bxc6+ {[%clk 0:02:21]}  bxc6 {[%clk 0:02:15]} 13. Nd2 {[%clk 0:02:07]}  f6 {[%clk 0:02:09]} 14. Nxg6 {[%clk 0:02:07]}  Nxg6 {[%clk 0:02:10]} 15. Qc2 {[%clk 0:02:06]}  Kf7 {[%clk 0:02:09]} 16. Rd1 {[%clk 0:02:06]}  Bd6 {[%clk 0:02:08]} 17. Nf3 {[%clk 0:02:05]}  Rc8 {[%clk 0:02:04]} 18. e4 {[%clk 0:02:04]}  dxe4 {[%clk 0:01:56]} 19. Qxe4 {[%clk 0:02:03]}  Qe7 {[%clk 0:01:48]} 20. c5 {[%clk 0:01:58]}  Bb8 {[%clk 0:01:47]} 21. g3 {[%clk 0:01:56]}  Rhd8 {[%clk 0:01:46]} 22. O-O {[%clk 0:01:52]}  Rd5 {[%clk 0:01:46]} 23. Rfe1 {[%clk 0:01:46]}  Qd7 {[%clk 0:01:42]} 24. Qe2 {[%clk 0:01:40]}  Rd8 {[%clk 0:01:41]} 25. Rxd5 {[%clk 0:01:29]}  Qxd5 {[%clk 0:01:42]} 26. Nd4 {[%clk 0:01:23]}  Be5 {[%clk 0:01:37]} 27. Rd1 {[%clk 0:01:23]}  a5 {[%clk 0:01:28]} 28. Rd2 {[%clk 0:01:12]}  axb4 {[%clk 0:01:28]} 29. Nf3 {[%clk 0:01:08]}  Qxf3 {[%clk 0:01:11]} 30. Qxf3 {[%clk 0:01:09]}  Rxd2 {[%clk 0:01:08]} 31. Bxe5 {[%clk 0:01:10]}  Nxe5 {[%clk 0:01:04]} 32. Qxh5+ {[%clk 0:01:10]}  Kf8 {[%clk 0:00:57]} 33. axb4 {[%clk 0:01:09]}  Rd4 {[%clk 0:00:57]} 34. Qh8+ {[%clk 0:01:04]}  Kf7 {[%clk 0:00:55]} 35. Qb8 {[%clk 0:01:05]}  Kg6 {[%clk 0:00:54]} 36. Qe8+ {[%clk 0:00:55]}  Kf5 {[%clk 0:00:53]} 37. Qh5+ {[%clk 0:00:50]}  Ke4 {[%clk 0:00:50]} 38. Qe2+ {[%clk 0:00:45]}  Kd5 {[%clk 0:00:46]} 39. Qa2+ {[%clk 0:00:42]}  Ke4 {[%clk 0:00:45]} 40. Qxe6 {[%clk 0:00:40]}  Kf3 {[%clk 0:00:36]} 41. Qf5+ {[%clk 0:00:36]}  Ke2 {[%clk 0:00:37]} 42. Kg2 {[%clk 0:00:34]}  Nd3 {[%clk 0:00:20]} 43. Qe6+ {[%clk 0:00:33]}  Kd2 {[%clk 0:00:16]} 44. b5 {[%clk 0:00:32]}  Nxc5 {[%clk 0:00:03]} 45. Qe3+ {[%clk 0:00:31]} 1-0


[Site "https://www.chess.com"]

[Event "Titled Tuesday Blitz July 18 Early 2023"]
[White "Dubov, Daniil"]
[Black "Suyarov, Mukhammadzokhid"]
[WhiteFideId "24126055"]
[BlackFideId "14210495"]
[WhiteElo "3090"]
[BlackElo "2732"]
[Result "1-0"]
[Round "3"]
[TimeControl "180+2"]
[Date "2023.07.18"]
[WhiteClock "0:00:25"]
[BlackClock "0:00:10"]
[Board "3"]

1. e4 {[%clk 0:02:57]}  e6 {[%clk 0:03:00]} 2. Nf3 {[%clk 0:02:55]}  d5 {[%clk 0:03:00]} 3. Nc3 {[%clk 0:02:56]}  Nf6 {[%clk 0:02:56]} 4. e5 {[%clk 0:02:56]}  Nfd7 {[%clk 0:02:57]} 5. Ne2 {[%clk 0:02:57]}  c5 {[%clk 0:02:57]} 6. c3 {[%clk 0:02:58]}  Nc6 {[%clk 0:02:57]} 7. d4 {[%clk 0:02:58]}  Be7 {[%clk 0:02:57]} 8. h4 {[%clk 0:02:55]}  O-O {[%clk 0:02:55]} 9. Nf4 {[%clk 0:02:55]}  Qa5 {[%clk 0:02:55]} 10. Bd3 {[%clk 0:02:52]}  h6 {[%clk 0:02:44]} 11. O-O {[%clk 0:02:48]}  b5 {[%clk 0:02:12]} 12. Bb1 {[%clk 0:02:19]}  Rd8 {[%clk 0:01:52]} 13. Nh5 {[%clk 0:02:18]}  b4 {[%clk 0:01:42]} 14. Bxh6 {[%clk 0:02:07]}  gxh6 {[%clk 0:01:37]} 15. Qd3 {[%clk 0:02:07]}  Nf8 {[%clk 0:01:20]} 16. Qd2 {[%clk 0:02:06]}  f5 {[%clk 0:00:52]} 17. exf6 {[%clk 0:02:02]}  Bd6 {[%clk 0:00:46]} 18. Qxh6 {[%clk 0:02:01]}  Rd7 {[%clk 0:00:47]} 19. Ng5 {[%clk 0:01:55]}  Qc7 {[%clk 0:00:31]} 20. Re1 {[%clk 0:00:54]}  Nd8 {[%clk 0:00:20]} 21. f7+ {[%clk 0:00:47]}  Rxf7 {[%clk 0:00:19]} 22. Nxf7 {[%clk 0:00:47]}  Qxf7 {[%clk 0:00:15]} 23. Nf6+ {[%clk 0:00:47]}  Qxf6 {[%clk 0:00:15]} 24. Qxf6 {[%clk 0:00:47]}  bxc3 {[%clk 0:00:15]} 25. bxc3 {[%clk 0:00:44]}  Nc6 {[%clk 0:00:14]} 26. Bg6 {[%clk 0:00:39]}  Bd7 {[%clk 0:00:11]} 27. Re3 {[%clk 0:00:33]}  Be7 {[%clk 0:00:11]} 28. Qf7+ {[%clk 0:00:33]}  Kh8 {[%clk 0:00:11]} 29. Qf4 {[%clk 0:00:26]}  cxd4 {[%clk 0:00:10]} 30. Qh6+ {[%clk 0:00:25]}  Kg8 {[%clk 0:00:10]} 31. Rg3 {[%clk 0:00:25]}  Bd6 {[%clk 0:00:10]} 32. f4 {[%clk 0:00:23]}  Nxg6 {[%clk 0:00:08]} 33. Qxg6+ {[%clk 0:00:23]}  Kf8 {[%clk 0:00:08]} 34. Qg8+ {[%clk 0:00:24]}  Ke7 {[%clk 0:00:09]} 35. Rg7+ {[%clk 0:00:25]}  Kf6 {[%clk 0:00:10]} 36. Qf7# {[%clk 0:00:25]} 1-0


[Site "https://www.chess.com"]

[Event "Titled Tuesday Blitz July 18 Early 2023"]
[White "Xu, Yi"]
[Black "Theodorou, Nikolas"]
[WhiteFideId "8605564"]
[BlackFideId "4262875"]
[WhiteElo "2731"]
[BlackElo "3087"]
[Result "1/2-1/2"]
[Round "3"]
[TimeControl "180+2"]
[Date "2023.07.18"]
[WhiteClock "0:00:57"]
[BlackClock "0:00:59"]
[Board "4"]

1. e4 {[%clk 0:02:56]}  e5 {[%clk 0:02:55]} 2. Nf3 {[%clk 0:02:56]}  Nc6 {[%clk 0:02:55]} 3. Bc4 {[%clk 0:02:56]}  Nf6 {[%clk 0:02:54]} 4. d3 {[%clk 0:02:56]}  Bc5 {[%clk 0:02:50]} 5. O-O {[%clk 0:02:56]}  d6 {[%clk 0:02:50]} 6. c3 {[%clk 0:02:57]}  a6 {[%clk 0:02:50]} 7. a4 {[%clk 0:02:56]}  Ba7 {[%clk 0:02:51]} 8. Nbd2 {[%clk 0:02:54]}  O-O {[%clk 0:02:51]} 9. h3 {[%clk 0:02:54]}  h6 {[%clk 0:02:51]} 10. Re1 {[%clk 0:02:53]}  Re8 {[%clk 0:02:51]} 11. b4 {[%clk 0:02:51]}  Be6 {[%clk 0:02:52]} 12. Bxe6 {[%clk 0:02:50]}  Rxe6 {[%clk 0:02:52]} 13. Qc2 {[%clk 0:02:47]}  Qd7 {[%clk 0:02:53]} 14. Rb1 {[%clk 0:02:41]}  Rd8 {[%clk 0:02:31]} 15. b5 {[%clk 0:02:31]}  Ne7 {[%clk 0:02:27]} 16. Nf1 {[%clk 0:02:16]}  Nh5 {[%clk 0:02:22]} 17. d4 {[%clk 0:01:57]}  Ng6 {[%clk 0:02:16]} 18. Be3 {[%clk 0:01:19]}  Ngf4 {[%clk 0:02:11]} 19. Ng3 {[%clk 0:01:06]}  Rg6 {[%clk 0:02:05]} 20. Kh2 {[%clk 0:01:06]}  axb5 {[%clk 0:01:22]} 21. axb5 {[%clk 0:01:05]}  Re8 {[%clk 0:01:09]} 22. Nh4 {[%clk 0:01:05]}  Rg5 {[%clk 0:00:59]} 23. Nf3 {[%clk 0:01:03]}  Rg6 {[%clk 0:00:59]} 24. Nh4 {[%clk 0:01:01]}  Rg5 {[%clk 0:00:59]} 25. Nf3 {[%clk 0:00:57]}  Rg6 {[%clk 0:00:59]} 1/2-1/2


[Site "https://www.chess.com"]